{"text_format":"3","workbook":"xlsx","n_sheets":1,"sheets":["Buget cheltuieli"],"not_rendered":{"charts":2,"defined_names":3},"read":"whole","date_system":"1900"}

{"sheet":"Buget cheltuieli","index":0,"n_rows":47,"n_cols":7,"rows_kept":47,"merged":[[0,1,0,4],[0,5,0,6],[16,1,16,6],[48,1,48,6]]}
[null,"Buget cheltuieli",{"$nulls":3},"CONTOSO, 2013"]
[]
[]
[null," BUGET PERSONAL"]
{"$rows_empty":7}
[null,"STARE","PERSONAL","BUGET","REAL","DIFERENȚĂ (lei)","DIFERENȚĂ (%)"]
[null,{"$f":"IFERROR(tblCheltuieliPersonal[[#This Row],[REAL]]/tblCheltuieliPersonal[[#This Row],[BUGET]],\"\")","v":{"v":1.13,"d":"$1.13"}},"Birou",{"v":500,"d":"500.00 lei"},{"v":565,"d":"565.00 lei"},{"$f":"tblCheltuieliPersonal[[#This Row],[BUGET]]-tblCheltuieliPersonal[[#This Row],[REAL]]","v":{"v":-65,"d":"-65.00 lei"}},{"$f":"IFERROR(tblCheltuieliPersonal[DIFERENȚĂ (lei)]/tblCheltuieliPersonal[BUGET],\"\")","v":{"v":-0.13,"d":"-13%"}}]
[null,{"$f":"IFERROR(tblCheltuieliPersonal[[#This Row],[REAL]]/tblCheltuieliPersonal[[#This Row],[BUGET]],\"\")","v":{"v":1.2,"d":"$1.20"}},"Magazin",{"v":125,"d":"125.00 lei"},{"v":150,"d":"150.00 lei"},{"$f":"tblCheltuieliPersonal[[#This Row],[BUGET]]-tblCheltuieliPersonal[[#This Row],[REAL]]","v":{"v":-25,"d":"-25.00 lei"}},{"$f":"IFERROR(tblCheltuieliPersonal[DIFERENȚĂ (lei)]/tblCheltuieliPersonal[BUGET],\"\")","v":{"v":-0.2,"d":"-20%"}}]
[null,{"$f":"IFERROR(tblCheltuieliPersonal[[#This Row],[REAL]]/tblCheltuieliPersonal[[#This Row],[BUGET]],\"\")","v":{"v":1,"d":"$1.00"}},"Agenți de vânzări",{"v":100,"d":"100.00 lei"},{"v":100,"d":"100.00 lei"},{"$f":"tblCheltuieliPersonal[[#This Row],[BUGET]]-tblCheltuieliPersonal[[#This Row],[REAL]]","v":{"v":0,"d":"0.00 lei"}},{"$f":"IFERROR(tblCheltuieliPersonal[DIFERENȚĂ (lei)]/tblCheltuieliPersonal[BUGET],\"\")","v":{"v":0,"d":"0%"}}]
[null,{"$f":"IFERROR(tblCheltuieliPersonal[[#This Row],[REAL]]/tblCheltuieliPersonal[[#This Row],[BUGET]],\"\")","v":{"v":0.9,"d":"$0.90"}},"Altele",{"v":100,"d":"100.00 lei"},{"v":90,"d":"90.00 lei"},{"$f":"tblCheltuieliPersonal[[#This Row],[BUGET]]-tblCheltuieliPersonal[[#This Row],[REAL]]","v":{"v":10,"d":"10.00 lei"}},{"$f":"IFERROR(tblCheltuieliPersonal[DIFERENȚĂ (lei)]/tblCheltuieliPersonal[BUGET],\"\")","v":{"v":0.1,"d":"10%"}}]
[]
[]
[null," BUGET OPERAȚIONAL"]
{"$rows_empty":7}
[null,"STARE","OPERAȚIONAL","BUGET","REAL","DIFERENȚĂ (lei)","DIFERENȚĂ (%)"]
[null,{"$f":"IFERROR(tblCheltuieliOperaționale[[#This Row],[REAL]]/tblCheltuieliOperaționale[[#This Row],[BUGET]],\"\")","v":{"v":0.98,"d":"$0.98"}},"Publicitate",{"v":250,"d":"250.00 lei"},{"v":245,"d":"245.00 lei"},{"$f":"tblCheltuieliOperaționale[[#This Row],[BUGET]]-tblCheltuieliOperaționale[[#This Row],[REAL]]","v":{"v":5,"d":"5.00 lei"}},{"$f":"IFERROR(tblCheltuieliOperaționale[[#This Row],[DIFERENȚĂ (lei)]]/tblCheltuieliOperaționale[[#This Row],[BUGET]],\"\")","v":{"v":0.02,"d":"2%"}}]
[null,{"$f":"IFERROR(tblCheltuieliOperaționale[[#This Row],[REAL]]/tblCheltuieliOperaționale[[#This Row],[BUGET]],\"\")","v":{"v":1.2,"d":"$1.20"}},"Datorii",{"v":125,"d":"125.00 lei"},{"v":150,"d":"150.00 lei"},{"$f":"tblCheltuieliOperaționale[[#This Row],[BUGET]]-tblCheltuieliOperaționale[[#This Row],[REAL]]","v":{"v":-25,"d":"-25.00 lei"}},{"$f":"IFERROR(tblCheltuieliOperaționale[[#This Row],[DIFERENȚĂ (lei)]]/tblCheltuieliOperaționale[[#This Row],[BUGET]],\"\")","v":{"v":-0.2,"d":"-20%"}}]
[null,{"$f":"IFERROR(tblCheltuieliOperaționale[[#This Row],[REAL]]/tblCheltuieliOperaționale[[#This Row],[BUGET]],\"\")","v":{"v":1,"d":"$1.00"}},"Avantaje",{"v":100,"d":"100.00 lei"},{"v":100,"d":"100.00 lei"},{"$f":"tblCheltuieliOperaționale[[#This Row],[BUGET]]-tblCheltuieliOperaționale[[#This Row],[REAL]]","v":{"v":0,"d":"0.00 lei"}},{"$f":"IFERROR(tblCheltuieliOperaționale[[#This Row],[DIFERENȚĂ (lei)]]/tblCheltuieliOperaționale[[#This Row],[BUGET]],\"\")","v":{"v":0,"d":"0%"}}]
[null,{"$f":"IFERROR(tblCheltuieliOperaționale[[#This Row],[REAL]]/tblCheltuieliOperaționale[[#This Row],[BUGET]],\"\")","v":{"v":0.9,"d":"$0.90"}},"Resurse",{"v":100,"d":"100.00 lei"},{"v":90,"d":"90.00 lei"},{"$f":"tblCheltuieliOperaționale[[#This Row],[BUGET]]-tblCheltuieliOperaționale[[#This Row],[REAL]]","v":{"v":10,"d":"10.00 lei"}},{"$f":"IFERROR(tblCheltuieliOperaționale[[#This Row],[DIFERENȚĂ (lei)]]/tblCheltuieliOperaționale[[#This Row],[BUGET]],\"\")","v":{"v":0.1,"d":"10%"}}]
[null,{"$f":"IFERROR(tblCheltuieliOperaționale[[#This Row],[REAL]]/tblCheltuieliOperaționale[[#This Row],[BUGET]],\"\")","v":""},"Tarife poștale",null,null,{"$f":"tblCheltuieliOperaționale[[#This Row],[BUGET]]-tblCheltuieliOperaționale[[#This Row],[REAL]]","v":{"v":0,"d":"0.00 lei"}},{"$f":"IFERROR(tblCheltuieliOperaționale[[#This Row],[DIFERENȚĂ (lei)]]/tblCheltuieliOperaționale[[#This Row],[BUGET]],\"\")","v":""}]
[null,{"$f":"IFERROR(tblCheltuieliOperaționale[[#This Row],[REAL]]/tblCheltuieliOperaționale[[#This Row],[BUGET]],\"\")","v":""},"Chirie sau ipotecă",null,null,{"$f":"tblCheltuieliOperaționale[[#This Row],[BUGET]]-tblCheltuieliOperaționale[[#This Row],[REAL]]","v":{"v":0,"d":"0.00 lei"}},{"$f":"IFERROR(tblCheltuieliOperaționale[[#This Row],[DIFERENȚĂ (lei)]]/tblCheltuieliOperaționale[[#This Row],[BUGET]],\"\")","v":""}]
[null,{"$f":"IFERROR(tblCheltuieliOperaționale[[#This Row],[REAL]]/tblCheltuieliOperaționale[[#This Row],[BUGET]],\"\")","v":""},"Cheltuieli vânzări",null,null,{"$f":"tblCheltuieliOperaționale[[#This Row],[BUGET]]-tblCheltuieliOperaționale[[#This Row],[REAL]]","v":{"v":0,"d":"0.00 lei"}},{"$f":"IFERROR(tblCheltuieliOperaționale[[#This Row],[DIFERENȚĂ (lei)]]/tblCheltuieliOperaționale[[#This Row],[BUGET]],\"\")","v":""}]
[null,{"$f":"IFERROR(tblCheltuieliOperaționale[[#This Row],[REAL]]/tblCheltuieliOperaționale[[#This Row],[BUGET]],\"\")","v":""},"Taxe",null,null,{"$f":"tblCheltuieliOperaționale[[#This Row],[BUGET]]-tblCheltuieliOperaționale[[#This Row],[REAL]]","v":{"v":0,"d":"0.00 lei"}},{"$f":"IFERROR(tblCheltuieliOperaționale[[#This Row],[DIFERENȚĂ (lei)]]/tblCheltuieliOperaționale[[#This Row],[BUGET]],\"\")","v":""}]
[null,{"$f":"IFERROR(tblCheltuieliOperaționale[[#This Row],[REAL]]/tblCheltuieliOperaționale[[#This Row],[BUGET]],\"\")","v":""},"Utilități",null,null,{"$f":"tblCheltuieliOperaționale[[#This Row],[BUGET]]-tblCheltuieliOperaționale[[#This Row],[REAL]]","v":{"v":0,"d":"0.00 lei"}},{"$f":"IFERROR(tblCheltuieliOperaționale[[#This Row],[DIFERENȚĂ (lei)]]/tblCheltuieliOperaționale[[#This Row],[BUGET]],\"\")","v":""}]
[null,{"$f":"IFERROR(tblCheltuieliOperaționale[[#This Row],[REAL]]/tblCheltuieliOperaționale[[#This Row],[BUGET]],\"\")","v":""},"Altele",null,null,{"$f":"tblCheltuieliOperaționale[[#This Row],[BUGET]]-tblCheltuieliOperaționale[[#This Row],[REAL]]","v":{"v":0,"d":"0.00 lei"}},{"$f":"IFERROR(tblCheltuieliOperaționale[[#This Row],[DIFERENȚĂ (lei)]]/tblCheltuieliOperaționale[[#This Row],[BUGET]],\"\")","v":""}]
[null,{"$f":"IFERROR(tblCheltuieliOperaționale[[#This Row],[REAL]]/tblCheltuieliOperaționale[[#This Row],[BUGET]],\"\")","v":""},"Asigurare",null,null,{"$f":"tblCheltuieliOperaționale[[#This Row],[BUGET]]-tblCheltuieliOperaționale[[#This Row],[REAL]]","v":{"v":0,"d":"0.00 lei"}},{"$f":"IFERROR(tblCheltuieliOperaționale[[#This Row],[DIFERENȚĂ (lei)]]/tblCheltuieliOperaționale[[#This Row],[BUGET]],\"\")","v":""}]
[null,{"$f":"IFERROR(tblCheltuieliOperaționale[[#This Row],[REAL]]/tblCheltuieliOperaționale[[#This Row],[BUGET]],\"\")","v":""},"Dobândă",null,null,{"$f":"tblCheltuieliOperaționale[[#This Row],[BUGET]]-tblCheltuieliOperaționale[[#This Row],[REAL]]","v":{"v":0,"d":"0.00 lei"}},{"$f":"IFERROR(tblCheltuieliOperaționale[[#This Row],[DIFERENȚĂ (lei)]]/tblCheltuieliOperaționale[[#This Row],[BUGET]],\"\")","v":""}]
[null,{"$f":"IFERROR(tblCheltuieliOperaționale[[#This Row],[REAL]]/tblCheltuieliOperaționale[[#This Row],[BUGET]],\"\")","v":""},"Telefon",null,null,{"$f":"tblCheltuieliOperaționale[[#This Row],[BUGET]]-tblCheltuieliOperaționale[[#This Row],[REAL]]","v":{"v":0,"d":"0.00 lei"}},{"$f":"IFERROR(tblCheltuieliOperaționale[[#This Row],[DIFERENȚĂ (lei)]]/tblCheltuieliOperaționale[[#This Row],[BUGET]],\"\")","v":""}]
[null,{"$f":"IFERROR(tblCheltuieliOperaționale[[#This Row],[REAL]]/tblCheltuieliOperaționale[[#This Row],[BUGET]],\"\")","v":""},"Întreținere și reparații",null,null,{"$f":"tblCheltuieliOperaționale[[#This Row],[BUGET]]-tblCheltuieliOperaționale[[#This Row],[REAL]]","v":{"v":0,"d":"0.00 lei"}},{"$f":"IFERROR(tblCheltuieliOperaționale[[#This Row],[DIFERENȚĂ (lei)]]/tblCheltuieliOperaționale[[#This Row],[BUGET]],\"\")","v":""}]
[null,{"$f":"IFERROR(tblCheltuieliOperaționale[[#This Row],[REAL]]/tblCheltuieliOperaționale[[#This Row],[BUGET]],\"\")","v":""},"Taxe legale",null,null,{"$f":"tblCheltuieliOperaționale[[#This Row],[BUGET]]-tblCheltuieliOperaționale[[#This Row],[REAL]]","v":{"v":0,"d":"0.00 lei"}},{"$f":"IFERROR(tblCheltuieliOperaționale[[#This Row],[DIFERENȚĂ (lei)]]/tblCheltuieliOperaționale[[#This Row],[BUGET]],\"\")","v":""}]
[null,{"$f":"IFERROR(tblCheltuieliOperaționale[[#This Row],[REAL]]/tblCheltuieliOperaționale[[#This Row],[BUGET]],\"\")","v":""},"Amortizare",null,null,{"$f":"tblCheltuieliOperaționale[[#This Row],[BUGET]]-tblCheltuieliOperaționale[[#This Row],[REAL]]","v":{"v":0,"d":"0.00 lei"}},{"$f":"IFERROR(tblCheltuieliOperaționale[[#This Row],[DIFERENȚĂ (lei)]]/tblCheltuieliOperaționale[[#This Row],[BUGET]],\"\")","v":""}]
[null,{"$f":"IFERROR(tblCheltuieliOperaționale[[#This Row],[REAL]]/tblCheltuieliOperaționale[[#This Row],[BUGET]],\"\")","v":""},"Expediere",null,null,{"$f":"tblCheltuieliOperaționale[[#This Row],[BUGET]]-tblCheltuieliOperaționale[[#This Row],[REAL]]","v":{"v":0,"d":"0.00 lei"}},{"$f":"IFERROR(tblCheltuieliOperaționale[[#This Row],[DIFERENȚĂ (lei)]]/tblCheltuieliOperaționale[[#This Row],[BUGET]],\"\")","v":""}]
[null,{"$f":"IFERROR(tblCheltuieliOperaționale[[#This Row],[REAL]]/tblCheltuieliOperaționale[[#This Row],[BUGET]],\"\")","v":""},"Stocare",null,null,{"$f":"tblCheltuieliOperaționale[[#This Row],[BUGET]]-tblCheltuieliOperaționale[[#This Row],[REAL]]","v":{"v":0,"d":"0.00 lei"}},{"$f":"IFERROR(tblCheltuieliOperaționale[[#This Row],[DIFERENȚĂ (lei)]]/tblCheltuieliOperaționale[[#This Row],[BUGET]],\"\")","v":""}]
[null,{"$f":"IFERROR(tblCheltuieliOperaționale[[#This Row],[REAL]]/tblCheltuieliOperaționale[[#This Row],[BUGET]],\"\")","v":""},"Altele",null,null,{"$f":"tblCheltuieliOperaționale[[#This Row],[BUGET]]-tblCheltuieliOperaționale[[#This Row],[REAL]]","v":{"v":0,"d":"0.00 lei"}},{"$f":"IFERROR(tblCheltuieliOperaționale[[#This Row],[DIFERENȚĂ (lei)]]/tblCheltuieliOperaționale[[#This Row],[BUGET]],\"\")","v":""}]
[null,null,"Total cheltuieli",{"$f":"SUBTOTAL(109,tblCheltuieliOperaționale[BUGET],tblCheltuieliPersonal[BUGET])","v":{"v":1400,"d":"1,400.00 lei"}},{"$f":"SUBTOTAL(109,tblCheltuieliOperaționale[REAL],tblCheltuieliPersonal[REAL])","v":{"v":1490,"d":"1,490.00 lei"}},{"$f":"SUBTOTAL(109,tblCheltuieliOperaționale[DIFERENȚĂ (lei)],tblCheltuieliPersonal[DIFERENȚĂ (lei)])","v":{"v":-90,"d":"-90.00 lei"}},{"$f":"IFERROR(SUM(tblCheltuieliOperaționale[[#Totals],[DIFERENȚĂ (lei)]]/tblCheltuieliOperaționale[[#Totals],[BUGET]]),\"\")","v":{"v":-0.06428571428571428,"d":"-6%"}}]